fUSD/lending_fUSD_20260322
["ID","MTS","AMOUNT","RATE_DAILY","PERIOD"]
[408748573,1774191041206,-151.0,0.00010847,2]
[408748574,1774191041216,-500.0,0.00010847,2]
[408748575,1774191041226,-151.0,0.00010847,2]
[408748576,1774191041237,-500.0,0.00010847,2]
[408748577,1774191041247,-151.0,0.00010847,2]
[408748578,1774191041256,-151.0,0.00010847,2]
[408748579,1774191041267,-151.0,0.00010847,2]
[408748580,1774191041278,-151.0,0.00010847,2]
[408748581,1774191041288,-151.0,0.00010847,2]
[408748582,1774191041298,-151.0,0.00010847,2]
[408748583,1774191041307,-151.0,0.00010847,2]
[408748584,1774191041317,-151.0,0.00010847,2]
[408748585,1774191041327,-151.0,0.00010847,2]
[408748586,1774191041338,-151.0,0.00010847,2]
[408748587,1774191041348,-151.0,0.00010847,2]
[408748588,1774191041359,-151.0,0.00010851,2]
[408748589,1774191041368,-16836.77,0.00010851,2]
[408748590,1774191041378,-1568.76,0.00010853,2]
[408748591,1774191041388,-32984.9071,0.00010854,2]
[408748592,1774191041398,-1000.0,0.00010854,2]
[408748593,1774191041410,-165.0,0.00010862,2]
[408748594,1774191041427,-500.0,0.00010873,2]
[408748595,1774191041437,-500.0,0.00010873,2]
[408748596,1774191041447,-574.62700701,0.00010873,2]
[408748597,1774191041457,-500.0,0.00010873,2]
[408748598,1774191041467,-500.0,0.00010873,2]
[408748599,1774191041479,-267.0,0.00010884,2]
[408748600,1774191041489,-1900.0,0.000109,3]
[408748601,1774191041499,-8185.90148327,0.000109,2]
[408748602,1774191041509,-360.0,0.00010906,2]
[408748603,1774191041519,-500.0,0.00010927,2]
[408748604,1774191041529,-292.0,0.00010927,2]
[408748605,1774191041538,-433.0,0.00010949,2]
[408748606,1774191041548,-500.0,0.00010959,2]
[408748607,1774191041559,-150.0,0.00010959,2]
[408748608,1774191041569,-166.66,0.00010959,2]
[408748609,1774191041583,-500.0,0.00010959,2]
[408748610,1774191041593,-500.0,0.00010959,2]
[408748611,1774191041603,-500.0,0.00010959,2]
[408748612,1774191041613,-536.26558259,0.00010959,2]
[408748613,1774191041624,-241.8661,0.00010965,2]
[408748614,1774191041634,-413.0,0.0001097,2]
[408748615,1774191041644,-334.36,0.00010982,2]
[408748616,1774191041653,-470.0,0.00010992,2]
[408748617,1774191041665,-232.0,0.00011014,2]
[408748618,1774191041679,-166.66,0.00011016,2]
[408748619,1774191041689,-938.55,0.00011027,2]
[408748620,1774191041699,-329.0,0.00011035,2]
[408748621,1774191041711,-492.0,0.00011057,2]
[408748622,1774191041721,-166.66,0.00011068,2]
[408748623,1774191041731,-443.0,0.00011079,2]
[408748624,1774191041741,-26878.86319857,0.00011099,2]
[408748625,1774191041751,-497.0,0.000111,2]
[408748626,1774191041761,-444.0,0.00011122,2]
[408748627,1774191041771,-1818.0,0.0001114,2]
[408748628,1774191041782,-386.0,0.00011144,2]
[408748629,1774191041792,-1268.0,0.00011162,2]
[408748630,1774191041802,-422.0,0.00011165,2]
[408748631,1774191041812,-166.66,0.00011178,2]
[408748632,1774191041821,-187.0,0.00011185,2]
[408748633,1774191041831,-174.18,0.00011195,2]
[408748634,1774191041842,-500.0,0.00011201,2]
[408748635,1774191041852,-1595.0,0.00011207,2]
[408748636,1774191041862,-500.7546073,0.00011221,2]
[408748637,1774191041872,-500.0,0.00011221,2]
[408748638,1774191041881,-503.38189689,0.00011221,2]
[408748639,1774191041892,-500.0,0.00011221,2]
[408748640,1774191041902,-548.6697218,0.00011221,2]
[408748641,1774191041914,-1000.0,0.00011221,2]
[408748642,1774191041925,-1000.0,0.00011221,2]
[408748643,1774191041935,-26878.8631985,0.00011237,2]
[408748644,1774191041950,-166.66,0.00011288,2]
[408748645,1774191041959,-150.0,0.000113,2]
[408748646,1774191041970,-938.55,0.00011301,2]
[408748647,1774191041980,-1003.83332292,0.00011321,2]
[408748648,1774191041990,-501.01870448,0.00011321,2]
[408748649,1774191042000,-1000.0,0.00011321,2]
[408748650,1774191042010,-929.84899427,0.00011321,2]
[408748651,1774191042020,-1000.0,0.00011321,2]
[408748652,1774191042030,-200.0,0.00011395,2]
[408748653,1774191042039,-166.66,0.00011397,2]
[408748654,1774191042049,-200.0,0.00011407,2]
[408748655,1774191042060,-1004.67871963,0.00011421,2]
[408748656,1774191042070,-1000.0,0.00011421,2]
[408748657,1774191042079,-499.91265482,0.00011421,2]
[408748658,1774191042090,-250.0,0.00011424,2]
[408748659,1774191042099,-166.66,0.00011452,2]
[408748660,1774191042109,-1680.0,0.00011474,2]
[408748661,1774191042119,-500.0,0.00011475,2]
[408748662,1774191042128,-5000.0,0.00011475,2]
[408748663,1774191042142,-300.0,0.00011475,2]
[408748664,1774191042151,-166.66,0.00011507,2]
[408748665,1774191042161,-300.0,0.00011527,2]
[408748666,1774191042170,-420.0,0.00011527,2]
[408748667,1774191042180,-250.0,0.00011534,2]
[408748668,1774191042189,-938.55,0.00011575,2]
[408748669,1774191042199,-3029.232515,0.00011583,2]
[408748670,1774191042209,-500.0,0.00011677,2]
[408748671,1774191042218,-500.0,0.00011677,2]
[408748672,1774191042227,-500.0,0.00011677,2]
[408748673,1774191042237,-500.0,0.00011677,2]
[408748674,1774191042246,-500.0,0.00011677,2]
[408748675,1774191042256,-500.0,0.00011677,2]
[408748676,1774191042265,-500.0,0.00011677,2]
[408748677,1774191042274,-500.0,0.00011677,2]
[408748678,1774191042284,-500.0,0.00011677,2]
[408748679,1774191042295,-500.0,0.00011677,2]
[408748680,1774191042304,-500.0,0.00011677,2]
[408748681,1774191042314,-500.0,0.00011677,2]
[408748682,1774191042323,-500.0,0.00011677,2]
[408748683,1774191042334,-500.0,0.00011677,2]
[408748684,1774191042343,-156.71503579,0.00011677,2]
[408748685,1774191042353,-255.0,0.00011686,2]
[408748686,1774191042362,-2638.31779897,0.0001172,2]
[408748687,1774191042372,-158.35890768,0.0001172,2]
[408748688,1774191042382,-7074.14632851,0.0001172,2]
[408748689,1774191042391,-500.0,0.00011748,2]
[408748690,1774191042401,-1500.0,0.00011768,2]
[408748691,1774191042411,-1512.96917258,0.00011768,2]
[408748692,1774191042420,-26878.8631985,0.0001182,2]
[408748693,1774191042430,-938.55,0.00011848,2]
[408748694,1774191042440,-1277.04038587,0.00011868,2]
[408748695,1774191042449,-1500.0,0.00011868,2]
[408748696,1774191042460,-166.66,0.00011889,2]
[408748697,1774191042471,-4691.40165,0.00011906,2]
[408748698,1774191042481,-500.0,0.00011918,2]
[408748699,1774191042491,-200.0,0.00011943,2]
[408748700,1774191042503,-500.63590136,0.00011968,2]
[408748701,1774191042513,-500.0,0.00012022,2]
[408748702,1774191042523,-500.0,0.00012055,2]
[408748703,1774191042534,-938.55,0.00012122,2]
[408748704,1774191042544,-82653.4509949,0.00012149,2]
[408748705,1774191042554,-500.0,0.00012296,2]
[408748706,1774191042566,-2000.0,0.00012316,2]
[408748707,1774191042576,-166.66,0.00012325,2]
[408748708,1774191042587,-938.55,0.00012396,2]
[408748709,1774191042597,-26878.8631985,0.00012403,2]
[408748710,1774191042607,-2000.0,0.00012416,2]
[408748711,1774191042617,-200.0,0.00012491,2]
[408748712,1774191042627,-500.0,0.00012493,2]
[408748713,1774191042637,-11358.372627,0.00012544,2]
[408748714,1774191042647,-500.0,0.00012548,2]
[408748715,1774191042657,-380.2779283,0.0001257,2]
[408748716,1774191042667,-97300.0,0.000126,2]
[408748717,1774191042680,-2351.0,0.00012622,2]
[408748718,1774191042690,-501.0,0.0001263,2]
[408748719,1774191042700,-8185.90148326,0.00012661,2]
[408748720,1774191042711,-938.55,0.0001267,2]
[408748721,1774191042721,-181.0,0.00012673,2]
[408748722,1774191042731,-152.6652,0.000127,2]
[408748723,1774191042740,-150.0,0.00012762,2]
[408748724,1774191042750,-233.695269,0.00012763,2]
[408748725,1774191042760,-433.0,0.00012815,2]
[408748726,1774191042770,-1008.47953738,0.00012864,2]
[408748727,1774191042779,-334.36,0.00012914,2]
[408748728,1774191042789,-938.55,0.00012944,2]
[408748729,1774191042799,-1733.94746042,0.00012964,2]
[408748730,1774191042808,-26878.8631985,0.00012986,2]
[408748731,1774191042817,-200.0,0.00013039,2]
[408748732,1774191042826,-150.0,0.00013091,2]
[408748733,1774191042835,-5533.0,0.000132,3]
[408748734,1774191042845,-938.55,0.00013218,2]
[408748735,1774191042854,-399.07887743,0.00013227,2]
[408748736,1774191042864,-150.0,0.00013233,2]
[408748737,1774191042873,-150.0,0.00013235,2]
[408748738,1774191042891,-187.225372,0.00013236,2]
[408748739,1774191042902,-150.0,0.00013239,2]
[408748740,1774191042912,-250.658508,0.00013241,2]
[408748741,1774191042922,-174.18,0.00013267,2]
[408748742,1774191042931,-150.0,0.00013353,2]
[408748743,1774191042941,-500.0,0.00013425,2]
[408748744,1774191042950,-82653.4509949,0.00013471,2]
[408748745,1774191042960,-938.55,0.00013492,2]
[408748746,1774191042969,-838.98,0.000135,2]
[408748747,1774191042979,-41699.13191637,0.00013568,2]
[408748748,1774191042988,-26878.8631985,0.00013568,2]
[408748749,1774191042998,-151.0,0.00013586,2]
[408748750,1774191043008,-200.0,0.00013587,2]
[408748751,1774191043018,-4899.8829,0.00013598,2]
[408748752,1774191043028,-500.0,0.00013698,2]
[408748753,1774191043037,-500.0,0.00013698,2]
[408748754,1774191043047,-500.0,0.00013698,2]
[408748755,1774191043057,-500.0,0.00013698,2]
[408748756,1774191043066,-500.0,0.00013698,2]
[408748757,1774191043076,-500.0,0.00013698,2]
[408748758,1774191043086,-500.0,0.00013698,2]
[408748759,1774191043095,-500.0,0.00013698,2]
[408748760,1774191043105,-500.0,0.00013698,2]
[408748761,1774191043115,-500.0,0.00013698,2]
[408748762,1774191043124,-500.0,0.00013698,2]
[408748763,1774191043133,-500.0,0.00013698,2]
[408748764,1774191043142,-500.0,0.00013698,2]
[408748765,1774191043152,-500.0,0.00013698,2]
[408748766,1774191043161,-500.0,0.00013698,2]
[408748767,1774191043171,-500.0,0.00013698,2]
[408748768,1774191043180,-500.0,0.00013698,2]
[408748769,1774191043190,-500.0,0.00013698,2]
[408748770,1774191043199,-500.0,0.00013698,2]
[408748771,1774191043208,-500.0,0.00013698,2]
[408748772,1774191043217,-500.0,0.00013698,2]
[408748773,1774191043226,-500.0,0.00013698,2]
[408748774,1774191043236,-500.0,0.00013698,2]
[408748775,1774191043245,-500.0,0.00013698,2]
[408748776,1774191043254,-500.0,0.00013698,2]
[408748777,1774191043263,-500.0,0.00013698,2]
[408748778,1774191043273,-500.0,0.00013698,2]
[408748779,1774191043282,-500.0,0.00013698,2]
[408748780,1774191043291,-500.0,0.00013698,2]
[408748781,1774191043300,-500.0,0.00013698,2]
[408748782,1774191043310,-500.0,0.00013698,2]
[408748783,1774191043319,-500.0,0.00013698,2]
[408748784,1774191043329,-500.0,0.00013698,2]
[408748785,1774191043338,-521.60337023,0.00013698,2]
[408748786,1774191043347,-500.0,0.00013698,2]
[408748787,1774191043357,-500.0,0.00013698,2]
[408748788,1774191043367,-500.0,0.00013698,2]
[408748789,1774191043376,-500.0,0.00013698,2]
[408748790,1774191043386,-500.0,0.00013698,2]
[408748791,1774191043394,-500.0,0.00013698,2]
[408748792,1774191043404,-500.0,0.00013698,2]
[408748793,1774191043414,-500.0,0.00013698,2]
[408748794,1774191043423,-500.0,0.00013698,2]
[408748795,1774191043433,-500.0,0.00013698,2]
[408748796,1774191043442,-500.0,0.00013698,2]
[408748797,1774191043452,-500.0,0.00013698,2]
[408748798,1774191043461,-500.0,0.00013698,2]
[408748799,1774191043471,-500.0,0.00013698,2]
[408748800,1774191043481,-500.0,0.00013698,2]
[408748801,1774191043490,-303.97290395,0.00013698,2]
[408748802,1774191043500,-500.0,0.00013698,2]
[408748803,1774191043509,-500.0,0.00013698,2]
[408748804,1774191043519,-500.0,0.00013698,2]
[408748805,1774191043529,-500.0,0.00013698,2]
[408748806,1774191043538,-500.0,0.00013698,2]
[408748810,1774191044014,-500.0,0.00013698,2]
[408748811,1774191044024,-500.0,0.00013698,2]
[408748812,1774191044033,-500.0,0.00013698,2]
[408748813,1774191044043,-500.0,0.00013698,2]
[408748814,1774191044054,-180.31740041,0.00013698,2]
[408748815,1774191044064,-500.0,0.00013698,2]
[408748816,1774191044074,-506.62310437,0.00013698,2]
[408748817,1774191044084,-592.228816,0.00013698,2]
[408748818,1774191044093,-500.0,0.00013698,2]
[408748819,1774191044103,-500.0,0.00013698,2]
[408748820,1774191044112,-500.0,0.00013698,2]
[408748821,1774191044121,-500.0,0.00013698,2]
[408748822,1774191044130,-500.0,0.00013698,2]
[408748823,1774191044140,-500.0,0.00013698,2]
[408748824,1774191044148,-500.0,0.00013698,2]
[408748825,1774191044157,-500.0,0.00013698,2]
[408748826,1774191044166,-500.0,0.00013698,2]
[408748827,1774191044176,-500.0,0.00013698,2]
[408748828,1774191044185,-500.0,0.00013698,2]
[408748829,1774191044194,-500.0,0.00013698,2]
[408748830,1774191044203,-500.0,0.00013698,2]
[408748831,1774191044212,-500.0,0.00013698,2]
[408748832,1774191044221,-500.0,0.00013698,2]
[408748833,1774191044230,-500.0,0.00013698,2]
[408748834,1774191044239,-507.02157658,0.00013698,2]
[408748835,1774191044247,-500.0,0.00013698,2]
[408748836,1774191044257,-500.0,0.00013698,2]
[408748837,1774191044266,-500.0,0.00013698,2]
[408748838,1774191044276,-500.0,0.00013698,2]
[408748839,1774191044285,-207.8534478,0.00013698,2]
[408748840,1774191044294,-500.0,0.00013698,2]
[408748841,1774191044304,-500.0,0.00013698,2]
[408748842,1774191044313,-500.0,0.00013698,2]
[408748843,1774191044322,-500.0,0.00013698,2]
[408748844,1774191044331,-500.0,0.00013698,2]
[408748845,1774191044340,-500.0,0.00013698,2]
[408748846,1774191044349,-500.0,0.00013698,2]
[408748847,1774191044358,-500.0,0.00013698,2]
[408748848,1774191044366,-500.0,0.00013698,2]
[408748849,1774191044377,-500.0,0.00013698,2]
[408748850,1774191044386,-500.0,0.00013698,2]
[408748851,1774191044395,-500.0,0.00013698,2]
[408748852,1774191044405,-500.0,0.00013698,2]
[408748853,1774191044414,-473.27396647,0.00013698,2]
[408748854,1774191044423,-500.0,0.00013698,2]
[408748855,1774191044432,-500.0,0.00013698,2]
[408748856,1774191044441,-526.80863898,0.00013698,2]
[408748857,1774191044450,-500.0,0.00013698,2]
[408748858,1774191044459,-500.0,0.00013698,2]
[408748859,1774191044469,-500.0,0.00013698,2]
[408748860,1774191044479,-500.0,0.00013698,2]
[408748861,1774191044488,-500.0,0.00013698,2]
[408748862,1774191044498,-514.93719248,0.00013698,2]
[408748863,1774191044507,-544.94328698,0.00013698,2]
[408748864,1774191044516,-500.0,0.00013698,2]
[408748865,1774191044526,-500.0,0.00013698,2]
[408748866,1774191044535,-500.0,0.00013698,2]
[408748867,1774191044545,-500.0,0.00013698,2]
[408748868,1774191044554,-607.96438655,0.00013698,2]
[408748869,1774191044564,-500.0,0.00013698,2]
[408748870,1774191044573,-500.0,0.00013698,2]
[408748871,1774191044583,-511.33595066,0.00013698,2]
[408748872,1774191044592,-2227.58,0.00013698,2]
[408748873,1774191044602,-2227.58,0.00013698,2]
[408748874,1774191044611,-2227.58,0.00013698,2]
[408748875,1774191044620,-2227.58,0.00013698,2]
[408748876,1774191044629,-2227.58,0.00013698,2]
[408748877,1774191044638,-2227.58,0.00013698,2]
[408748878,1774191044647,-2227.58,0.00013698,2]
[408748879,1774191044656,-2227.58,0.00013698,2]
[408748880,1774191044666,-2227.58,0.00013698,2]
[408748881,1774191044680,-2227.58,0.00013698,2]
[408748882,1774191044690,-500.0,0.00013698,2]
[408748883,1774191044699,-500.0,0.00013698,2]
[408748884,1774191044708,-500.0,0.00013698,2]
[408748885,1774191044718,-500.0,0.00013698,2]
[408748886,1774191044727,-500.0,0.00013698,2]
[408748887,1774191044736,-500.0,0.00013698,2]
[408748888,1774191044746,-500.0,0.00013698,2]
[408748889,1774191044755,-500.0,0.00013698,2]
[408748890,1774191044764,-500.0,0.00013698,2]
[408748891,1774191044773,-500.0,0.00013698,2]
[408748892,1774191044782,-500.0,0.00013698,2]
[408748893,1774191044791,-500.0,0.00013698,2]
[408748894,1774191044800,-500.0,0.00013698,2]
[408748895,1774191044809,-500.0,0.00013698,2]
[408748896,1774191044819,-500.0,0.00013698,2]
[408748897,1774191044830,-500.0,0.00013698,2]
[408748898,1774191044840,-500.0,0.00013698,2]
[408748899,1774191044850,-500.0,0.00013698,2]
[408748900,1774191044860,-500.0,0.00013698,2]
[408748901,1774191044870,-500.0,0.00013698,2]
[408748902,1774191044879,-521.23273696,0.00013698,2]
[408748903,1774191044889,-523.44,0.00013698,2]
[408748904,1774191044898,-523.44,0.00013698,2]
[408748905,1774191044908,-523.44,0.00013698,2]
[408748906,1774191044918,-523.44,0.00013698,2]
[408748907,1774191044928,-523.44,0.00013698,2]
[408748908,1774191044938,-523.44,0.00013698,2]
[408748909,1774191044947,-523.44,0.00013698,2]
[408748910,1774191044958,-523.44,0.00013698,2]
[408748911,1774191044966,-523.44,0.00013698,2]
[408748912,1774191044976,-523.44,0.00013698,2]
[408748913,1774191044985,-523.44,0.00013698,2]
[408748914,1774191044994,-500.0,0.00013698,2]
[408748915,1774191045003,-500.0,0.00013698,2]
[408748916,1774191045013,-500.0,0.00013698,2]
[408748917,1774191045022,-500.0,0.00013698,2]
[408748918,1774191045031,-500.0,0.00013698,2]
[408748919,1774191045040,-500.0,0.00013698,2]
[408748920,1774191045049,-500.0,0.00013698,2]
[408748921,1774191045058,-411.8232167,0.00013698,2]
[408748922,1774191045067,-946.64,0.00013698,2]
[408748923,1774191045076,-946.64,0.00013698,2]
[408748924,1774191045086,-946.64,0.00013698,2]
[408748925,1774191045095,-946.64,0.00013698,2]
[408748926,1774191045104,-946.64,0.00013698,2]
[408748927,1774191045113,-946.64,0.00013698,2]
[408748928,1774191045123,-946.64,0.00013698,2]
[408748929,1774191045133,-946.64,0.00013698,2]
[408748930,1774191045144,-946.64,0.00013698,2]
[408748931,1774191045153,-946.64,0.00013698,2]
[408748932,1774191045163,-946.64,0.00013698,2]
[408748933,1774191045172,-500.0,0.00013698,2]
[408748934,1774191045180,-500.0,0.00013698,2]
[408748935,1774191045189,-500.0,0.00013698,2]
[408748936,1774191045198,-500.0,0.00013698,2]
[408748937,1774191045207,-500.0,0.00013698,2]
[408748938,1774191045217,-500.0,0.00013698,2]
[408748939,1774191045226,-500.0,0.00013698,2]
[408748940,1774191045236,-500.0,0.00013698,2]
[408748941,1774191045245,-500.0,0.00013698,2]
[408748942,1774191045254,-500.0,0.00013698,2]
[408748943,1774191045263,-522.93,0.00013698,2]
[408748944,1774191045272,-522.93,0.00013698,2]
[408748945,1774191045281,-522.93,0.00013698,2]
[408748946,1774191045290,-522.93,0.00013698,2]
[408748947,1774191045299,-522.93,0.00013698,2]
[408748948,1774191045308,-522.93,0.00013698,2]
[408748949,1774191045317,-522.93,0.00013698,2]
[408748950,1774191045326,-522.93,0.00013698,2]
[408748951,1774191045336,-522.93,0.00013698,2]
[408748952,1774191045345,-522.93,0.00013698,2]
[408748953,1774191045354,-150.0,0.00013699,2]
[408748954,1774191045364,-150.0,0.00013699,2]
[408748955,1774191045373,-200.0,0.00013699,2]
[408748956,1774191045382,-1665.27,0.00013699,2]
[408748957,1774191045391,-554.719802,0.00013699,2]
[408748958,1774191045401,-554.719802,0.00013699,2]
[408748959,1774191045410,-554.719802,0.00013699,2]
[408748960,1774191045420,-554.719802,0.00013699,2]
[408748961,1774191045429,-287.054717,0.00013699,2]
[408748962,1774191045439,-287.054717,0.00013699,2]
[408748963,1774191045448,-287.054717,0.00013699,2]
[408748964,1774191045457,-287.054717,0.00013699,2]
[408748965,1774191045467,-500.0,0.00013699,2]
[408748966,1774191045476,-500.0,0.00013699,2]
[408748967,1774191045485,-500.0,0.00013699,2]
[408748968,1774191045494,-500.0,0.00013699,2]
[408748969,1774191045504,-500.0,0.00013699,2]
[408748970,1774191045514,-347.47666717,0.00013699,2]
[408748971,1774191045523,-500.0,0.00013699,2]
[408748972,1774191045533,-500.0,0.00013699,2]
[408748973,1774191045543,-500.74920901,0.00013699,2]
[408748974,1774191045552,-500.4848322,0.00013699,2]
[408748975,1774191045561,-500.0,0.00013699,2]
[408748976,1774191045570,-500.43058459,0.00013699,2]
[408748977,1774191045579,-500.0,0.00013699,2]
[408748978,1774191045588,-500.44177829,0.00013699,2]
[408748979,1774191045598,-390.12270077,0.00013699,2]
[408748980,1774191045607,-500.0,0.00013699,2]
[408748981,1774191045616,-500.0,0.00013699,2]
[408748982,1774191045625,-500.0,0.00013699,2]
[408748983,1774191045634,-500.70382414,0.00013699,2]
[408748984,1774191045642,-500.0,0.00013699,2]
[408748985,1774191045651,-500.0,0.00013699,2]
[408748986,1774191045660,-500.0,0.00013699,2]
[408748987,1774191045672,-500.0,0.00013699,2]
[408748988,1774191045681,-500.0,0.00013699,2]
[408748989,1774191045690,-500.0,0.00013699,2]
[408748990,1774191045699,-500.55967201,0.00013699,2]
[408748991,1774191045708,-500.0,0.00013699,2]
[408748992,1774191045718,-500.0,0.00013699,2]
[408748993,1774191045727,-500.0,0.00013699,2]
[408748994,1774191045736,-500.0,0.00013699,2]
[408748995,1774191045746,-500.0,0.00013699,2]
[408748996,1774191045760,-508.10627581,0.00013699,2]
[408748997,1774191045770,-150.49957673,0.000137,2]
[408748998,1774191045779,-1685.88,0.000137,2]
[408748999,1774191045788,-1912.75,0.000137,2]
[408749000,1774191045797,-1885.27,0.000137,2]
[408749001,1774191045807,-1435.37,0.000137,2]
[408749002,1774191045816,-2747.48,0.000137,2]
[408749003,1774191045825,-679.7875,0.000137,2]
[408749004,1774191045834,-679.7875,0.000137,2]
[408749005,1774191045844,-1310.77797,0.000137,2]
[408749006,1774191045853,-679.7875,0.000137,2]
[408749007,1774191045862,-1310.77797,0.000137,2]
[408749008,1774191045872,-679.7875,0.000137,2]
[408749009,1774191045882,-1310.77797,0.000137,2]
[408749010,1774191045891,-1310.77797,0.000137,2]
[408749011,1774191045901,-151.0,0.000137,2]
[408749012,1774191045910,-151.0,0.000137,2]
[408749013,1774191045920,-151.0,0.000137,2]
[408749014,1774191045929,-500.0,0.00013705,2]
[408749015,1774191045938,-522.93,0.00013705,2]
[408749016,1774191045948,-293.37404714,0.00013706,2]
[408749017,1774191045958,-500.0,0.00013706,2]
[408749018,1774191045967,-500.0,0.00013706,2]
[408749020,1774191045977,-523.44,0.00013706,2]
[408749021,1774191045986,-946.64,0.00013706,2]
[408749022,1774191045996,-500.0,0.00013709,2]
[408749023,1774191046005,-390.47678169,0.00013709,2]
[408749024,1774191046015,-150.0,0.00013746,2]
[408749025,1774191046025,-938.59,0.00013766,2]
[408749026,1774191046034,-250.0,0.00013784,2]
[408749027,1774191046044,-901.36,0.000138,2]
[408749028,1774191046054,-3292.0,0.00013884,2]
[408749029,1774191046063,-5533.0,0.000139,5]
[408749030,1774191046073,-150.0,0.00013973,2]
[408749031,1774191046083,-150.0,0.00013973,2]
[408749033,1774191046093,-155.3777,0.00014,2]
[408749035,1774191046102,-500.0,0.00014,2]
[408749037,1774191046111,-736.0,0.00014062,2]
[408749039,1774191046121,-60000.0,0.00014115,2]
[408749040,1774191046130,-200.0,0.00014135,2]
[408749041,1774191046139,-150.0,0.00014138,2]
[408749042,1774191046149,-41699.13191637,0.00014151,2]
[408749043,1774191046158,-26878.8631985,0.00014151,2]
[408749044,1774191046168,-500.0,0.00014218,2]
[408749045,1774191046177,-500.0,0.00014218,2]
[408749046,1774191046186,-523.44,0.00014218,2]
[408749047,1774191046196,-946.64,0.00014218,2]
[408749048,1774191046205,-2227.58,0.00014246,2]
[408749049,1774191046215,-500.0,0.00014246,2]
[408749050,1774191046244,-500.0,0.00014246,2]
[408749051,1774191046261,-1001.53007131,0.00014247,2]
[408749052,1774191046283,-1000.0,0.00014247,2]
[408749053,1774191046306,-1000.0,0.00014247,2]
[408749054,1774191046323,-998.52273734,0.00014247,2]
[408749055,1774191046343,-1000.0,0.00014247,2]
[408749056,1774191046365,-1000.0,0.00014247,2]
[408749057,1774191046386,-1000.0,0.00014247,2]
[408749058,1774191046407,-1000.0,0.00014247,2]
[408749059,1774191046429,-1000.0,0.00014247,2]
[408749060,1774191046453,-1000.0,0.00014247,2]
[408749061,1774191046471,-1000.0,0.00014247,2]
[408749062,1774191046491,-502.54227332,0.00014247,2]
[408749063,1774191046504,-507.92423982,0.00014247,2]
[408749066,1774191046530,-505.99225948,0.00014247,2]
[408749068,1774191046546,-1000.0,0.00014247,2]
[408749071,1774191046565,-500.67270798,0.00014247,2]
[408749072,1774191046585,-1000.0,0.00014247,2]
[408749073,1774191046608,-538.91632234,0.00014247,2]
[408749074,1774191046634,-803.0796662,0.00014247,2]
[408749075,1774191046655,-334.36,0.00014296,2]
[408749076,1774191046680,-150.0,0.00014354,2]
[408749077,1774191046725,-160.0,0.00014387,2]
[408749078,1774191046747,-979.16666667,0.00014387,2]
[408749079,1774191046766,-160.0,0.00014387,2]
[408749080,1774191046788,-160.0,0.00014387,2]
[408749081,1774191046813,-150.0,0.00014456,2]
[408749082,1774191046834,-392.48943774,0.00014551,2]
[408749084,1774191046856,-174.61919141,0.00014561,2]
[408749085,1774191046875,-201.93286099,0.00014561,2]
[408749086,1774191046895,-151.0,0.00014561,2]